fUSD/lending_fUSD_20250112
["ID","MTS","AMOUNT","RATE_DAILY","PERIOD"]
[348680475,1736712639037,-156.68560212,9.909e-05,2]
[348680477,1736712639045,-500.0,9.909e-05,2]
[348680479,1736712639054,-500.66813291,9.909e-05,2]
[348680481,1736712639063,-500.24940782,9.909e-05,2]
[348680483,1736712639072,-500.41380996,9.909e-05,2]
[348680485,1736712639081,-500.73778728,9.909e-05,2]
[348680487,1736712639091,-500.45611121,9.909e-05,2]
[348680489,1736712639099,-500.43183548,9.909e-05,2]
[348680491,1736712639109,-501.06039653,9.909e-05,2]
[348680493,1736712639118,-500.0,9.909e-05,2]
[348680495,1736712639127,-1000.0,9.909e-05,2]
[348680497,1736712639136,-500.8417809,9.909e-05,2]
[348680499,1736712639145,-500.0,9.909e-05,2]
[348680501,1736712639154,-430.15,9.909e-05,2]
[348680503,1736712639163,-500.0,9.909e-05,2]
[348680505,1736712639172,-500.0,9.909e-05,2]
[348680507,1736712639181,-151.98,9.909e-05,2]
[348680509,1736712639190,-500.0,9.909e-05,2]
[348680511,1736712639200,-308.57473966,9.909e-05,2]
[348680513,1736712639209,-500.0,9.909e-05,2]
[348680515,1736712639218,-500.0,9.909e-05,2]
[348680517,1736712639227,-500.0,9.909e-05,2]
[348680519,1736712639236,-510.19,9.909e-05,2]
[348680521,1736712639245,-500.0,9.909e-05,2]
[348680523,1736712639254,-411.10880029,9.909e-05,2]
[348680525,1736712639263,-500.0,9.909e-05,2]
[348680527,1736712639272,-500.0,9.909e-05,2]
[348680529,1736712639281,-500.0,9.909e-05,2]
[348680531,1736712639291,-500.0,9.909e-05,2]
[348680533,1736712639300,-500.0,9.909e-05,2]
[348680534,1736712639311,-500.0,9.909e-05,2]
[348680535,1736712639320,-538.32368135,9.909e-05,2]
[348680536,1736712639330,-500.0,9.909e-05,2]
[348680537,1736712639340,-500.0,9.909e-05,2]
[348680538,1736712639349,-500.0,9.909e-05,2]
[348680539,1736712639358,-500.75045502,9.909e-05,2]
[348680540,1736712639368,-500.0,9.909e-05,2]
[348680541,1736712639377,-500.0,9.909e-05,2]
[348680542,1736712639387,-500.0,9.909e-05,2]
[348680543,1736712639396,-500.0,9.909e-05,2]
[348680545,1736712639408,-500.0,9.909e-05,2]
[348680546,1736712639417,-500.0,9.909e-05,2]
[348680548,1736712639427,-500.0,9.909e-05,2]
[348680550,1736712639436,-511.01231695,9.909e-05,2]
[348680552,1736712639446,-500.0,9.909e-05,2]
[348680554,1736712639455,-501.6310616,9.909e-05,2]
[348680556,1736712639464,-503.04233668,9.909e-05,2]
[348680558,1736712639473,-500.0,9.909e-05,2]
[348680560,1736712639484,-500.0,9.909e-05,2]
[348680562,1736712639493,-500.0,9.909e-05,2]
[348680564,1736712639502,-500.0,9.909e-05,2]
[348680566,1736712639511,-500.0,9.909e-05,2]
[348680568,1736712639520,-500.0,9.909e-05,2]
[348680570,1736712639529,-500.0,9.909e-05,2]
[348680572,1736712639538,-500.0,9.909e-05,2]
[348680574,1736712639546,-500.0,9.909e-05,2]
[348680575,1736712639555,-500.0,9.909e-05,2]
[348680577,1736712639564,-500.0,9.909e-05,2]
[348680579,1736712639573,-500.0,9.909e-05,2]
[348680581,1736712639582,-500.0,9.909e-05,2]
[348680583,1736712639592,-445.43617497,9.909e-05,2]
[348680585,1736712639600,-500.0,9.909e-05,2]
[348680587,1736712639609,-500.0,9.909e-05,2]
[348680589,1736712639618,-500.0,9.909e-05,2]
[348680591,1736712639627,-500.0,9.909e-05,2]
[348680593,1736712639636,-500.0,9.909e-05,2]
[348680595,1736712639646,-500.0,9.909e-05,2]
[348680597,1736712639655,-500.0,9.909e-05,2]
[348680599,1736712639664,-500.0,9.909e-05,2]
[348680601,1736712639673,-500.0,9.909e-05,2]
[348680603,1736712639682,-500.0,9.909e-05,2]
[348680605,1736712639691,-500.0,9.909e-05,2]
[348680607,1736712639700,-500.0,9.909e-05,2]
[348680609,1736712639709,-500.0,9.909e-05,2]
[348680611,1736712639717,-500.0,9.909e-05,2]
[348680613,1736712639726,-500.0,9.909e-05,2]
[348680615,1736712639735,-500.0,9.909e-05,2]
[348680617,1736712639744,-500.0,9.909e-05,2]
[348680619,1736712639753,-500.0,9.909e-05,2]
[348680621,1736712639762,-500.0,9.909e-05,2]
[348680623,1736712639771,-500.0,9.909e-05,2]
[348680625,1736712639780,-500.0,9.909e-05,2]
[348680627,1736712639789,-500.0,9.909e-05,2]
[348680629,1736712639798,-500.0,9.909e-05,2]
[348680631,1736712639809,-500.0,9.909e-05,2]
[348680633,1736712639818,-500.0,9.909e-05,2]
[348680635,1736712639827,-500.0,9.909e-05,2]
[348680637,1736712639837,-500.0,9.909e-05,2]
[348680639,1736712639846,-500.0,9.909e-05,2]
[348680641,1736712639854,-500.0,9.909e-05,2]
[348680643,1736712639863,-500.0,9.909e-05,2]
[348680645,1736712639872,-500.0,9.909e-05,2]
[348680647,1736712639881,-500.0,9.909e-05,2]
[348680649,1736712639890,-738.14,9.909e-05,2]
[348680651,1736712639899,-500.0,9.909e-05,2]
[348680653,1736712639908,-500.0,9.909e-05,2]
[348680655,1736712639917,-500.0,9.909e-05,2]
[348680657,1736712639926,-167.47304106,9.909e-05,2]
[348680659,1736712639935,-500.0,9.909e-05,2]
[348680661,1736712639945,-500.0,9.909e-05,2]
[348680663,1736712639954,-539.62,9.909e-05,2]
[348680665,1736712639963,-500.0,9.909e-05,2]
[348680667,1736712639972,-500.0,9.909e-05,2]
[348680669,1736712639981,-500.0,9.909e-05,2]
[348680671,1736712639991,-500.0,9.909e-05,2]
[348680673,1736712640000,-500.0,9.909e-05,2]
[348680675,1736712640009,-500.0,9.909e-05,2]
[348680677,1736712640017,-500.0,9.909e-05,2]
[348680679,1736712640026,-500.0,9.909e-05,2]
[348680681,1736712640035,-500.0,9.909e-05,2]
[348680683,1736712640045,-500.0,9.909e-05,2]
[348680685,1736712640054,-500.0,9.909e-05,2]
[348680687,1736712640063,-500.0,9.909e-05,2]
[348680689,1736712640072,-1052.86,9.909e-05,2]
[348680691,1736712640081,-501.2214797,9.909e-05,2]
[348680693,1736712640090,-500.0,9.909e-05,2]
[348680695,1736712640099,-751.08,9.909e-05,2]
[348680697,1736712640109,-500.0,9.909e-05,2]
[348680699,1736712640119,-500.0,9.909e-05,2]
[348680701,1736712640128,-150.0,9.909e-05,2]
[348680703,1736712640137,-500.0,9.909e-05,2]
[348680705,1736712640145,-208.77792751,9.909e-05,2]
[348680707,1736712640154,-532.75,9.909e-05,2]
[348680709,1736712640163,-500.0,9.909e-05,2]
[348680711,1736712640172,-500.0,9.909e-05,2]
[348680713,1736712640182,-500.0,9.909e-05,2]
[348680715,1736712640191,-831.34,9.909e-05,2]
[348680717,1736712640200,-500.0,9.909e-05,2]
[348680719,1736712640210,-638.66,9.909e-05,2]
[348680721,1736712640219,-500.0,9.909e-05,2]
[348680723,1736712640229,-500.0,9.909e-05,2]
[348680725,1736712640238,-500.0,9.909e-05,2]
[348680727,1736712640247,-500.0,9.909e-05,2]
[348680729,1736712640255,-873.65,9.909e-05,2]
[348680731,1736712640264,-500.0,9.909e-05,2]
[348680733,1736712640274,-1051.49,9.909e-05,2]
[348680734,1736712640283,-1154.2,9.909e-05,2]
[348680736,1736712640293,-1526.88,9.909e-05,2]
[348680738,1736712640302,-1777.0,9.909e-05,2]
[348680740,1736712640312,-1004.48,9.909e-05,2]
[348680742,1736712640322,-986.69,9.909e-05,2]
[348680744,1736712640331,-945.58,9.909e-05,2]
[348680746,1736712640342,-3130.05,9.909e-05,2]
[348680748,1736712640351,-887.76,9.909e-05,2]
[348680751,1736712640361,-1301.7,9.909e-05,2]
[348680752,1736712640370,-156.74649767,9.909e-05,2]
[348680754,1736712640380,-2136.13,9.909e-05,2]
[348680756,1736712640389,-554.45,9.909e-05,2]
[348680759,1736712640398,-1105.21,9.909e-05,2]
[348680761,1736712640412,-1006.62,9.909e-05,2]
[348680763,1736712640421,-838.97,9.909e-05,2]
[348680765,1736712640430,-1146.87,9.909e-05,2]
[348680790,1736712640650,-1041.41,9.909e-05,2]
[348680792,1736712640660,-500.0,9.909e-05,2]
[348680794,1736712640669,-911.09,9.909e-05,2]
[348680796,1736712640678,-830.05,9.909e-05,2]
[348680798,1736712640688,-150.0,9.93e-05,2]
[348680799,1736712640697,-156.7464976,9.939e-05,2]
[348680802,1736712640706,-500.0,9.97e-05,2]
[348680803,1736712640716,-757.74,9.996e-05,2]
[348680805,1736712640725,-1842.24,9.996e-05,2]
[348680807,1736712640734,-352.34944084,9.996e-05,2]
[348680834,1736712641045,-382.42055916,9.996e-05,2]
[348680835,1736712641055,-1719.0,9.996e-05,2]
[348680836,1736712641064,-1269.92,9.996e-05,2]
[348680837,1736712641073,-800.91,9.996e-05,2]
[348680838,1736712641082,-515.51,9.996e-05,2]
[348680839,1736712641091,-2080.74,9.996e-05,2]
[348680840,1736712641100,-1140.87,9.996e-05,2]
[348680842,1736712641109,-837.61,9.996e-05,2]
[348680843,1736712641117,-500.0,9.996e-05,2]
[348680845,1736712641126,-648.86,9.996e-05,2]
[348680847,1736712641135,-500.0,9.996e-05,2]
[348680848,1736712641144,-500.0,9.997e-05,2]
[348680849,1736712641153,-500.0,9.997e-05,2]
[348680850,1736712641162,-524.09,9.997e-05,2]
[348680851,1736712641171,-803.4,9.997e-05,2]
[348680852,1736712641180,-1566.51,9.997e-05,2]
[348680853,1736712641189,-939.66,9.997e-05,2]
[348680854,1736712641199,-628.68,9.997e-05,2]
[348680855,1736712641207,-647.88809,9.997e-05,2]
[348680856,1736712641217,-603.991468,9.997e-05,2]
[348680857,1736712641226,-2883.78,9.997e-05,2]
[348680858,1736712641234,-757.35,9.997e-05,2]
[348680859,1736712641243,-674.02,9.997e-05,2]
[348680860,1736712641253,-659.59,9.997e-05,2]
[348680861,1736712641262,-500.0,9.998e-05,2]
[348680862,1736712641271,-597.93649051,9.998e-05,2]
[348680863,1736712641280,-500.0,9.998e-05,2]
[348680864,1736712641288,-656.88,9.998e-05,2]
[348680865,1736712641297,-500.0,9.998e-05,2]
[348680866,1736712641307,-500.0,9.998e-05,2]
[348680867,1736712641316,-500.0,9.998e-05,2]
[348680868,1736712641325,-574.95,9.998e-05,2]
[348680869,1736712641336,-500.0,9.998e-05,2]
[348680870,1736712641345,-500.0,9.998e-05,2]
[348680871,1736712641354,-500.0,9.998e-05,2]
[348680872,1736712641364,-500.0,9.998e-05,2]
[348680873,1736712641373,-695.67,9.998e-05,2]
[348680874,1736712641383,-500.0,9.998e-05,2]
[348680875,1736712641392,-500.0,9.998e-05,2]
[348680876,1736712641401,-500.0,9.998e-05,2]
[348680877,1736712641414,-154.68306915,9.998e-05,2]
[348680878,1736712641462,-358.70784989,9.998e-05,2]
[348680879,1736712641472,-500.0,9.998e-05,2]
[348680880,1736712641481,-576.35,9.998e-05,2]
[348680881,1736712641491,-500.0,9.998e-05,2]
[348680882,1736712641500,-465.88717016,9.998e-05,2]
[348680883,1736712641509,-500.0,9.998e-05,2]
[348680884,1736712641518,-299.05497995,9.998e-05,2]
[348680885,1736712641542,-200.94502005,9.998e-05,2]
[348680886,1736712641552,-500.0,9.998e-05,2]
[348680887,1736712641561,-213.54283352,9.998e-05,2]
[348680888,1736712641572,-334.28716648,9.998e-05,2]
[348680889,1736712641581,-500.0,9.998e-05,2]
[348680890,1736712641590,-500.0,9.998e-05,2]
[348680891,1736712641599,-535.21,9.998e-05,2]
[348680892,1736712641608,-500.0,9.998e-05,2]
[348680893,1736712641617,-500.0,9.998e-05,2]
[348680894,1736712641627,-500.0,9.998e-05,2]
[348680895,1736712641636,-523.45,9.998e-05,2]
[348680896,1736712641645,-500.0,9.998e-05,2]
[348680897,1736712641654,-500.0,9.998e-05,2]
[348680898,1736712641663,-500.0,9.998e-05,2]
[348680899,1736712641672,-500.0,9.998e-05,2]
[348680900,1736712641681,-500.0,9.998e-05,2]
[348680901,1736712641690,-557.78,9.998e-05,2]
[348680902,1736712641699,-652.68,9.998e-05,2]
[348680903,1736712641708,-500.0,9.998e-05,2]
[348680904,1736712641717,-500.0,9.998e-05,2]
[348680905,1736712641726,-632.58,9.998e-05,2]
[348680906,1736712641735,-500.0,9.998e-05,2]
[348680907,1736712641744,-500.0,9.998e-05,2]
[348680908,1736712641752,-500.0,9.998e-05,2]
[348680909,1736712641762,-752.01,9.998e-05,2]
[348680910,1736712641771,-607.94,9.998e-05,2]
[348680911,1736712641781,-500.0,9.998e-05,2]
[348680912,1736712641789,-500.0,9.998e-05,2]
[348680913,1736712641798,-500.0,9.998e-05,2]
[348680914,1736712641808,-500.0,9.998e-05,2]
[348680915,1736712641816,-500.0,9.998e-05,2]
[348680916,1736712641825,-500.0,9.998e-05,2]
[348680917,1736712641834,-628.06,9.998e-05,2]
[348680918,1736712641843,-500.0,9.998e-05,2]
[348680919,1736712641851,-500.0,9.998e-05,2]
[348680920,1736712641860,-500.0,9.998e-05,2]
[348680921,1736712641869,-500.0,9.998e-05,2]
[348680922,1736712641878,-500.0,9.998e-05,2]
[348680923,1736712641887,-500.0,9.998e-05,2]
[348680924,1736712641896,-500.0,9.998e-05,2]
[348680925,1736712641905,-500.0,9.998e-05,2]
[348680926,1736712641914,-500.0,9.998e-05,2]
[348680927,1736712641923,-500.0,9.998e-05,2]
[348680928,1736712641932,-702.13,9.998e-05,2]
[348680929,1736712641940,-500.0,9.998e-05,2]
[348680930,1736712641949,-500.0,9.998e-05,2]
[348680931,1736712641959,-672.86,9.998e-05,2]
[348680932,1736712641967,-500.0,9.998e-05,2]
[348680933,1736712641976,-500.0,9.998e-05,2]
[348680934,1736712641985,-500.0,9.998e-05,2]
[348680935,1736712641994,-500.0,9.998e-05,2]
[348680936,1736712642003,-555.66,9.998e-05,2]
[348680937,1736712642012,-500.0,9.998e-05,2]
[348680938,1736712642021,-500.0,9.998e-05,2]
[348680939,1736712642030,-500.0,9.998e-05,2]
[348680940,1736712642040,-500.0,9.998e-05,2]
[348680941,1736712642049,-500.0,9.998e-05,2]
[348680942,1736712642059,-500.0,9.998e-05,2]
[348680943,1736712642069,-500.0,9.998e-05,2]
[348680944,1736712642078,-500.0,9.998e-05,2]
[348680945,1736712642087,-500.0,9.998e-05,2]
[348680946,1736712642096,-500.0,9.998e-05,2]
[348680947,1736712642105,-731.29,9.998e-05,2]
[348680948,1736712642114,-500.55527494,9.998e-05,2]
[348680949,1736712642123,-500.0,9.998e-05,2]
[348680950,1736712642132,-625.61,9.998e-05,2]
[348680951,1736712642142,-500.0,9.998e-05,2]
[348680952,1736712642153,-500.0,9.998e-05,2]
[348680953,1736712642164,-500.0,9.998e-05,2]
[348680954,1736712642174,-500.0,9.998e-05,2]
[348680955,1736712642183,-500.0,9.998e-05,2]
[348680956,1736712642193,-500.0,9.998e-05,2]
[348680957,1736712642204,-500.0,9.998e-05,2]
[348680958,1736712642213,-343.38310667,9.998e-05,2]
[348680959,1736712642232,-156.61689333,9.998e-05,2]
[348680960,1736712642242,-500.0,9.998e-05,2]
[348680961,1736712642251,-275.40310667,9.998e-05,2]
[348680962,1736712642262,-224.59689333,9.998e-05,2]
[348680963,1736712642272,-500.0,9.998e-05,2]
[348680964,1736712642281,-500.0,9.998e-05,2]
[348680965,1736712642290,-500.0,9.998e-05,2]
[348680966,1736712642300,-171.60310667,9.998e-05,2]
[348680967,1736712642317,-326.45,9.998e-05,2]
[348680968,1736712642517,-1.94689333,9.998e-05,2]
[348680969,1736712642528,-500.0,9.998e-05,2]
[348680970,1736712642539,-500.0,9.998e-05,2]
[348680971,1736712642550,-661.41,9.998e-05,2]
[348680972,1736712642560,-500.0,9.998e-05,2]
[348680973,1736712642569,-500.0,9.998e-05,2]
[348680974,1736712642579,-500.0,9.998e-05,2]
[348680975,1736712642591,-500.0,9.998e-05,2]
[348680976,1736712642600,-500.0,9.998e-05,2]
[348680977,1736712642611,-500.0,9.998e-05,2]
[348680978,1736712642620,-500.0,9.998e-05,2]
[348680979,1736712642631,-500.0,9.998e-05,2]
[348680980,1736712642641,-500.0,9.998e-05,2]
[348680981,1736712642650,-500.0,9.998e-05,2]
[348680982,1736712642659,-500.0,9.998e-05,2]
[348680983,1736712642669,-500.0,9.998e-05,2]
[348680984,1736712642679,-509.06050431,9.998e-05,2]
[348680985,1736712642690,-500.0,9.998e-05,2]
[348680986,1736712642699,-500.0,9.998e-05,2]
[348680987,1736712642708,-778.03,9.998e-05,2]
[348680988,1736712642717,-614.98,9.998e-05,2]
[348680989,1736712642726,-500.0,9.998e-05,2]
[348680990,1736712642735,-500.0,9.998e-05,2]
[348680991,1736712642746,-500.0,9.998e-05,2]
[348680992,1736712642756,-587.75,9.998e-05,2]
[348680993,1736712642766,-549.03,9.998e-05,2]
[348680994,1736712642775,-500.0,9.998e-05,2]
[348680995,1736712642784,-450.75897573,9.998e-05,2]
[348680996,1736712642818,-49.24102427,9.998e-05,2]
[348680997,1736712642827,-500.0,9.998e-05,2]
[348680998,1736712642837,-500.0,9.998e-05,2]
[348680999,1736712642846,-561.06,9.998e-05,2]
[348681000,1736712642855,-500.0,9.998e-05,2]
[348681001,1736712642864,-500.0,9.998e-05,2]
[348681002,1736712642873,-544.16,9.998e-05,2]
[348681003,1736712642882,-500.0,9.998e-05,2]
[348681004,1736712642892,-636.03532532,9.998e-05,2]
[348681005,1736712642904,-500.0,9.998e-05,2]
[348681006,1736712642914,-500.0,9.998e-05,2]
[348681007,1736712642924,-500.0,9.998e-05,2]
[348681008,1736712642935,-500.0,9.998e-05,2]
[348681009,1736712642946,-562.49,9.998e-05,2]
[348681010,1736712642956,-500.0,9.998e-05,2]
[348681011,1736712642966,-500.0,9.998e-05,2]
[348681012,1736712642976,-500.0,9.998e-05,2]
[348681013,1736712642986,-524.66,9.998e-05,2]
[348681014,1736712642997,-738.6,9.998e-05,2]
[348681015,1736712643006,-500.0,9.998e-05,2]
[348681016,1736712643016,-576.84,9.998e-05,2]
[348681017,1736712643027,-500.0,9.998e-05,2]
[348681018,1736712643036,-442.81694314,9.998e-05,2]
[348681019,1736712643045,-702.78,9.998e-05,2]
[348681020,1736712643055,-852.51,9.998e-05,2]
[348681021,1736712643064,-531.65,9.998e-05,2]
[348681022,1736712643073,-682.12,9.998e-05,2]
[348681024,1736712643082,-500.0,9.998e-05,2]
[348681025,1736712643091,-500.0,9.998e-05,2]
[348681026,1736712643100,-591.45312377,9.998e-05,2]
[348681028,1736712643109,-3195.18,9.998e-05,2]
[348681029,1736712643118,-539.05,9.998e-05,2]
[348681031,1736712643126,-509.46,9.998e-05,2]
[348681033,1736712643135,-500.0,9.998e-05,2]
[348681036,1736712643144,-500.0,9.998e-05,2]
[348681038,1736712643153,-500.0,9.998e-05,2]
[348681040,1736712643163,-2219.7,9.998e-05,2]
[348681042,1736712643171,-785.29,9.998e-05,2]
[348681044,1736712643180,-500.0,9.998e-05,2]
[348681046,1736712643189,-500.0,9.998e-05,2]
[348681048,1736712643198,-637.79,9.998e-05,2]
[348681050,1736712643207,-591.76,9.998e-05,2]
[348681052,1736712643216,-2446.63,9.998e-05,2]
[348681054,1736712643225,-438.5765008,9.998e-05,2]
[348681057,1736712643247,-61.4234992,9.998e-05,2]
[348681059,1736712643256,-677.79,9.998e-05,2]
[348681061,1736712643265,-500.0,9.998e-05,2]
[348681063,1736712643274,-678.59,9.998e-05,2]
[348681065,1736712643284,-500.0,9.998e-05,2]
[348681067,1736712643293,-500.0,9.998e-05,2]
[348681069,1736712643302,-500.0,9.998e-05,2]
[348681071,1736712643311,-500.0,9.998e-05,2]
[348681073,1736712643320,-658.08,9.998e-05,2]
[348681075,1736712643330,-695.73,9.998e-05,2]
[348681077,1736712643339,-593.38,9.998e-05,2]
[348681079,1736712643348,-500.0,9.998e-05,2]
[348681080,1736712643358,-500.0,9.998e-05,2]
[348681081,1736712643367,-500.0,9.998e-05,2]
[348681082,1736712643376,-569.13,9.998e-05,2]
[348681083,1736712643385,-500.0,9.998e-05,2]
[348681085,1736712643394,-500.0,9.998e-05,2]
[348681087,1736712643403,-500.0,9.998e-05,2]
[348681088,1736712643416,-802.1,9.998e-05,2]
[348681089,1736712643425,-578.41,9.998e-05,2]
[348681090,1736712643434,-500.0,9.998e-05,2]
[348681091,1736712643444,-659.69,9.998e-05,2]
[348681092,1736712643453,-500.0,9.998e-05,2]
[348681093,1736712643463,-500.0,9.999e-05,2]
[348681094,1736712643472,-500.0,9.999e-05,2]
[348681095,1736712643482,-500.0,9.999e-05,2]
[348681096,1736712643491,-500.0,9.999e-05,2]
[348681097,1736712643501,-1051.49,9.999e-05,2]
[348681098,1736712643510,-1051.49,9.999e-05,2]
[348681099,1736712643519,-1415.84,9.999e-05,2]
[348681100,1736712643527,-2134.2805508,9.999e-05,2]
[348681101,1736712643539,-28.2094492,9.999e-05,2]
[348681102,1736712643548,-4001.87,9.999e-05,2]
[348681103,1736712643557,-691.07,9.999e-05,2]
[348681104,1736712643566,-587.7,9.999e-05,2]
[348681105,1736712643576,-1516.5,9.999e-05,2]
[348681106,1736712643585,-711.53,9.999e-05,2]
[348681107,1736712643594,-500.0,0.0001,2]
[348681108,1736712643603,-207.93,0.0001,2]
[348681110,1736712643612,-495.0160275,0.0001,2]
[348681111,1736712643621,-495.01602722,0.00010003,2]
[348681112,1736712643631,-150.0,0.00010015,2]
[348681113,1736712643639,-156.7464976,0.00010069,2]
[348681114,1736712643648,-500.0,0.00010084,2]
[348681115,1736712643657,-1051.49,0.00010084,2]
[348681116,1736712643666,-500.0,0.00010085,2]
[348681117,1736712643675,-1786.57,0.00010085,2]
[348681118,1736712643684,-1507.76,0.00010085,2]
[348681119,1736712643693,-1478.79,0.00010085,2]
[348681120,1736712643702,-500.0,0.00010085,2]
[348681121,1736712643711,-745.07,0.00010085,2]
[348681122,1736712643720,-1052.16,0.00010085,2]
[348681123,1736712643729,-1214.15,0.00010085,2]
[348681124,1736712643738,-704.78,0.00010085,2]
[348681125,1736712643747,-1000.0,0.00010085,2]
[348681126,1736712643756,-942.89,0.00010085,2]
[348681127,1736712643765,-150.0,0.00010087,2]
[348681128,1736712643774,-8307.40044427,0.00010088,4]
[348681129,1736712643783,-495.01602722,0.00010107,2]
[348681130,1736712643792,-1000.0,0.00010116,2]
[348681131,1736712643801,-179.45,0.00010137,2]
[348681132,1736712643810,-150.8549692,0.00010162,2]
[348681133,1736712643819,-524.90672556,0.00010182,2]
[348681134,1736712643828,-500.0,0.00010182,2]
[348681135,1736712643838,-500.0,0.00010182,2]
[348681136,1736712643846,-500.0,0.00010182,2]
[348681137,1736712643855,-550.07,0.00010182,2]
[348681138,1736712643864,-500.0,0.00010182,2]
[348681139,1736712643873,-791.51,0.00010182,2]
[348681140,1736712643882,-2996.35,0.00010182,2]
[348681141,1736712643891,-500.0,0.00010182,2]
[348681142,1736712643900,-500.0,0.00010182,2]
[348681143,1736712643909,-547.82,0.00010182,2]
[348681144,1736712643919,-586.43,0.00010182,2]
[348681145,1736712643929,-500.0,0.00010182,2]
[348681146,1736712643938,-500.0,0.00010182,2]
[348681147,1736712643947,-500.0,0.00010182,2]
[348681148,1736712643956,-511.68,0.00010182,2]
[348681149,1736712643965,-500.0,0.00010182,2]
[348681150,1736712643974,-866.96,0.00010182,2]
[348681151,1736712643983,-500.0,0.00010182,2]
[348681152,1736712643992,-238.76295077,0.00010182,2]
[348681153,1736712644002,-500.0,0.00010182,2]
[348681154,1736712644011,-500.0,0.00010182,2]
[348681155,1736712644020,-500.0,0.00010182,2]
[348681156,1736712644029,-507.21,0.00010182,2]
[348681157,1736712644039,-500.0,0.00010182,2]
[348681158,1736712644049,-594.93,0.00010182,2]
[348681159,1736712644058,-500.0,0.00010182,2]
[348681160,1736712644068,-500.0,0.00010182,2]
[348681161,1736712644077,-500.0,0.00010182,2]
[348681162,1736712644086,-986.35,0.00010182,2]
[348681163,1736712644311,-500.0,0.00010182,2]
[348681164,1736712644321,-802.5,0.00010182,2]
[348681165,1736712644331,-730.81,0.00010182,2]
[348681166,1736712644341,-808.68,0.00010182,2]
[348681167,1736712644350,-838.73,0.00010182,2]
[348681168,1736712644359,-500.0,0.00010182,2]
[348681169,1736712644369,-637.01,0.00010182,2]
[348681170,1736712644378,-500.0,0.00010182,2]
[348681171,1736712644389,-855.53,0.00010182,2]
[348681172,1736712644398,-1552.51,0.00010182,2]
[348681173,1736712644411,-4782.0,0.00010182,2]
[348681174,1736712644421,-471.33053249,0.00010182,2]
[348681175,1736712644434,-28.66946751,0.00010182,2]
[348681176,1736712644444,-594.5,0.00010182,2]
[348681177,1736712644455,-532.91,0.00010182,2]
[348681178,1736712644465,-500.0,0.00010182,2]
[348681179,1736712644474,-1735.16,0.00010182,2]
[348681180,1736712644484,-852.09,0.00010182,2]
[348681181,1736712644494,-500.0,0.00010182,2]
[348681182,1736712644504,-728.62,0.00010182,2]
[348681183,1736712644513,-500.0,0.00010182,2]
[348681184,1736712644523,-601.91,0.00010182,2]
[348681185,1736712644532,-1452.25,0.00010182,2]
[348681186,1736712644541,-500.0,0.00010182,2]
[348681187,1736712644551,-500.0,0.00010182,2]
[348681188,1736712644560,-1249.95417531,0.00010182,2]
[348681189,1736712645032,-1323.08,9.909e-05,2]
[348681190,1736712645043,-1907.38582469,0.00010182,2]
[348681191,1736712645054,-2761.30679262,0.00010182,2]
[348681192,1736712645088,-970.21320738,0.00010182,2]
[348681193,1736712645099,-500.0,0.00010182,2]
[348681194,1736712645110,-500.0,0.00010182,2]
[348681195,1736712645119,-932.38,0.00010182,2]
[348681196,1736712645130,-616.45,0.00010182,2]
[348681197,1736712645140,-3490.99,0.00010182,2]
[348681198,1736712645150,-285.87165309,0.00010182,2]
[348681199,1736712645163,-394.33834691,0.00010182,2]
[348681200,1736712645172,-657.85,0.00010182,2]
[348681201,1736712645182,-1250.78,0.00010182,2]
[348681202,1736712645192,-572.33,0.00010182,2]
[348681203,1736712645202,-500.0,0.00010182,2]
[348681204,1736712645213,-500.0,0.00010182,2]
[348681205,1736712645224,-1103.59,0.00010182,2]